bitfinex/quotes_BTCUSD_20241222
["timestamp","ask_amount","ask_price","bid_price","bid_amount"]
[1734850915831,0.003,96760.0,96754.0,0.413417]
[1734850916237,0.007,96760.0,96754.0,0.413417]
[1734850916641,8.57e-05,96762.0,96754.0,0.206708]
[1734850916844,8.57e-05,96762.0,96761.0,0.206694]
[1734850918629,8.57e-05,96762.0,96761.0,0.207694]
[1734850919205,8.57e-05,96762.0,96761.0,0.210694]
[1734850921157,8.57e-05,96762.0,96761.0,0.209694]
[1734850921565,8.57e-05,96762.0,96761.0,0.211694]
[1734850922219,8.57e-05,96762.0,96761.0,0.208694]
[1734850922580,8.57e-05,96762.0,96761.0,0.294194]
[1734850926544,8.57e-05,96762.0,96761.0,0.2943654]
[1734850928069,8.57e-05,96762.0,96761.0,0.0876714]
[1734850928275,8.57e-05,96762.0,96761.0,0.0071714]
[1734850928626,0.1013941,96762.0,96761.0,0.0071714]
[1734850929007,0.206694,96761.0,96742.0,0.206735]
[1734850929190,0.206699,96759.0,96741.0,1.47383419]
[1734850929418,0.1013084,96758.0,96741.0,1.47383419]
[1734850930312,0.1013084,96758.0,96742.0,0.004]
[1734850930434,0.413406,96757.0,96742.0,0.002]
[1734850930635,0.206703,96757.0,96742.0,0.002]
[1734850930879,0.206703,96757.0,96741.0,1.47883419]
[1734850931080,0.206703,96757.0,96741.0,1.47383419]
[1734850931313,0.206703,96757.0,96741.0,1.47683419]
[1734850931662,0.206703,96757.0,96741.0,1.47383419]
[1734850931873,0.206703,96757.0,96742.0,0.003]
[1734850932432,0.206707,96755.0,96742.0,0.003]
[1734850932626,0.0829,96747.0,96742.0,0.007]
[1734850932948,0.289625,96747.0,96742.0,0.003]
[1734850933460,0.289625,96747.0,96742.0,0.005]
[1734850933759,0.289625,96747.0,96741.0,1.47683419]
[1734850933950,0.289625,96747.0,96742.0,0.003]
[1734850934115,0.0829,96747.0,96742.0,0.003]
[1734850934321,0.0483,96745.0,96742.0,0.003]
[1734850934687,0.0829,96743.0,96742.0,0.003]
[1734850934914,0.1842084,96743.0,96742.0,0.003]
[1734850935373,0.206735,96742.0,96741.0,1.47383419]
[1734850935526,0.3080434,96742.0,96741.0,1.47383419]
[1734850937190,0.3140434,96742.0,96741.0,1.47483419]
[1734850937594,0.65305887,96742.0,96741.0,1.47383419]
[1734850937864,0.65705887,96742.0,96741.0,1.47383419]
[1734850938093,0.34601547,96742.0,96741.0,1.47383419]
[1734850938507,0.34801547,96742.0,96741.0,1.47383419]
[1734850938763,0.53333327,96742.0,96741.0,1.47383419]
[1734850939544,0.63464167,96742.0,96741.0,1.47383419]
[1734850939878,0.63264167,96742.0,96741.0,1.47383419]
[1734850940083,0.19798145,96742.0,96741.0,1.47383419]
[1734850940325,0.37098145,96742.0,96741.0,1.47383419]
[1734850940520,0.49698145,96742.0,96741.0,1.47383419]
[1734850940719,0.49498145,96742.0,96741.0,1.47383419]
[1734850941123,0.49898145,96742.0,96741.0,1.47383419]
[1734850941361,0.4043084,96742.0,96741.0,1.47383419]
[1734850941581,0.4063084,96742.0,96741.0,1.47383419]
[1734850942270,0.4023084,96742.0,96741.0,1.47383419]
[1734850942616,0.4063084,96742.0,96741.0,1.47383419]
[1734850942877,0.74856763,96742.0,96741.0,1.47383419]
[1734850944589,0.35836164,96742.0,96741.0,1.47383419]
[1734850944967,0.34825923,96742.0,96741.0,1.55593419]
[1734850945199,0.34825923,96742.0,96741.0,1.66764969]
[1734850945471,0.34425923,96742.0,96741.0,1.15017007]
[1734850945714,0.34825923,96742.0,96741.0,1.17110051]
[1734850945919,0.34625923,96742.0,96741.0,1.16069341]
[1734850946077,0.34425923,96742.0,96741.0,1.16069341]
[1734850946275,0.34425923,96742.0,96741.0,1.16569341]
[1734850946473,0.15,96774.0,96759.0,0.206698]
[1734850946729,0.1013084,96773.0,96759.0,0.206698]
[1734850947153,0.1013084,96773.0,96759.0,0.413397]
[1734850947754,0.0454,96785.0,96754.0,0.206708]
[1734850947755,0.206628,96793.0,96763.0,0.0821]
[1734850947955,0.1013084,96787.0,96763.0,0.0821]
[1734850948113,0.1013084,96787.0,96772.0,0.20667]
[1734850948310,0.3079484,96787.0,96772.0,0.20667]
[1734850948749,0.1013084,96787.0,96772.0,0.20667]
[1734850948951,0.1013084,96787.0,96778.0,0.206656]
[1734850949325,0.1013084,96787.0,96778.0,0.20671022]
[1734850949687,0.01,96790.0,96778.0,0.20671022]
[1734850949904,0.1113084,96790.0,96778.0,0.20671022]
[1734850950083,0.003,96787.0,96778.0,0.20671022]
[1734850950773,0.1113084,96790.0,96778.0,0.20671022]
[1734850950907,0.1123084,96790.0,96778.0,0.20671022]
[1734850951308,0.011,96790.0,96778.0,0.20671022]
[1734850951513,0.011,96790.0,96784.0,0.206644]
[1734850952087,0.014,96790.0,96784.0,0.206644]
[1734850952418,0.01,96790.0,96784.0,0.206644]
[1734850952625,0.001,96787.0,96784.0,0.206644]
[1734850953248,0.01,96790.0,96784.0,0.206644]
[1734850953883,0.01,96790.0,96784.0,0.207644]
[1734850954245,0.01,96790.0,96784.0,0.001]
[1734850955230,0.01,96790.0,96784.0,0.206645]
[1734850956094,0.01,96790.0,96784.0,0.207645]
[1734850956468,0.206609,96801.0,96784.0,0.206645]
[1734850956672,0.1013084,96800.0,96784.0,0.206645]
[1734850957068,0.1013084,96800.0,96784.0,0.285545]
[1734850957806,0.1013084,96800.0,96790.0,0.206631]
[1734850958673,0.1013084,96800.0,96790.0,0.413263]
[1734850959044,0.1013084,96800.0,96790.0,0.206631]
[1734850959278,0.1043084,96800.0,96790.0,0.206631]
[1734850959484,0.1063084,96800.0,96790.0,0.206631]
[1734850959709,0.005,96800.0,96797.0,0.206617]
[1734850959909,0.003,96800.0,96797.0,0.206617]
[1734850960083,0.005,96800.0,96797.0,0.206617]
[1734850960588,0.003,96800.0,96797.0,0.206617]
[1734850961046,0.003,96800.0,96797.0,0.001]
[1734850961453,0.206588,96811.0,96797.0,0.001]
[1734850961844,0.1013941,96806.0,96797.0,0.002]
[1734850962061,0.3079084,96805.0,96797.0,0.001]
[1734850962265,0.3079084,96805.0,96785.0,0.206642]
[1734850962431,8.57e-05,96800.0,96797.0,0.003]
[1734850962632,8.57e-05,96800.0,96797.0,0.002]
[1734850963050,8.57e-05,96800.0,96785.0,0.206642]
[1734850964804,8.57e-05,96800.0,96797.0,0.001]
[1734850964957,8.57e-05,96800.0,96785.0,0.206642]
[1734850965361,0.0060857,96800.0,96785.0,0.206642]
[1734850965587,0.0020857,96800.0,96785.0,0.206642]
[1734850966000,0.0020857,96800.0,96797.0,0.001]
[1734850966364,0.0020857,96800.0,96785.0,0.206642]
[1734850966565,0.0060857,96800.0,96785.0,0.206642]
[1734850967029,0.0040857,96800.0,96785.0,0.206642]
[1734850967243,0.0040857,96800.0,96797.0,0.001]
[1734850968033,8.57e-05,96800.0,96797.0,0.001]
[1734850968376,8.57e-05,96800.0,96797.0,0.002]
[1734850968583,8.57e-05,96800.0,96797.0,0.001]
[1734850968883,0.0020857,96800.0,96797.0,0.001]
[1734850969238,8.57e-05,96800.0,96797.0,0.001]
[1734850969436,0.3079214,96799.0,96797.0,0.001]
[1734850969661,0.3079214,96799.0,96797.0,0.002]
[1734850970429,0.3079214,96799.0,96797.0,0.001]
[1734850971976,0.3079214,96799.0,96777.0,0.0001714]
[1734850972192,0.206635,96789.0,96777.0,0.0001714]
[1734850973250,0.206626,96794.0,96777.0,0.0001714]
[1734850973427,0.206628,96792.0,96777.0,0.0001714]
[1734850973673,0.1013084,96791.0,96777.0,0.0001714]
[1734850974073,0.1013084,96791.0,96778.0,0.00105422]
[1734850974529,0.1013084,96791.0,96779.0,0.206656]
[1734850977012,0.206626,96794.0,96779.0,0.206656]
[1734850977230,8.57e-05,96800.0,96785.0,0.206643]
[1734850977392,8.57e-05,96800.0,96786.0,0.0753]
[1734850978008,8.57e-05,96800.0,96787.0,0.206639]
[1734850978210,8.57e-05,96800.0,96793.0,0.206625]
[1734850978637,0.0010857,96800.0,96793.0,0.206625]
[1734850979712,0.0030857,96800.0,96793.0,0.206625]
[1734850979895,8.57e-05,96800.0,96793.0,0.206625]
[1734850980028,8.57e-05,96800.0,96793.0,0.209625]
[1734850980227,0.0010857,96800.0,96793.0,0.003]
[1734850980667,8.57e-05,96800.0,96793.0,0.003]
[1734850980948,8.57e-05,96800.0,96793.0,0.005]
[1734850981503,8.57e-05,96800.0,96793.0,0.003]
[1734850981739,8.57e-05,96800.0,96793.0,0.005]
[1734850981917,8.57e-05,96800.0,96794.0,0.206624]
[1734850983303,8.57e-05,96800.0,96794.0,0.209624]
[1734850983445,8.57e-05,96800.0,96794.0,0.211624]
[1734850985052,8.57e-05,96800.0,96794.0,0.418248]
[1734850986920,8.57e-05,96800.0,96796.0,0.41324]
[1734850987543,8.57e-05,96800.0,96794.0,0.005]
[1734850987756,8.57e-05,96800.0,96794.0,0.003]
[1734850988130,8.57e-05,96800.0,96796.0,0.002]
[1734850988695,8.57e-05,96800.0,96796.0,0.005]
[1734850989158,8.57e-05,96800.0,96796.0,0.002]
[1734850989414,8.57e-05,96800.0,96794.0,0.003]
[1734850989648,8.57e-05,96800.0,96791.0,0.206629]
[1734850989886,8.57e-05,96800.0,96794.0,0.002]
[1734850990126,8.57e-05,96800.0,96796.0,0.003]
[1734850990334,8.57e-05,96800.0,96791.0,0.206629]
[1734850990585,0.2066987,96800.0,96794.0,0.002]
[1734850990792,0.206616,96798.0,96794.0,0.002]
[1734850991005,0.20662,96796.0,96781.0,0.0808]
[1734850991220,0.206624,96794.0,96781.0,0.0808]
[1734850991434,0.1013084,96793.0,96781.0,0.0808]
[1734850992601,0.206628,96792.0,96777.0,0.0001714]
[1734850992770,0.1013084,96791.0,96777.0,0.0001714]
[1734850992973,0.1013084,96791.0,96781.0,0.004]
[1734850992974,0.206632,96790.0,96781.0,0.004]
[1734850993192,0.1013084,96789.0,96781.0,0.001]
[1734850993440,0.1013084,96789.0,96777.0,0.0001714]
[1734850993623,0.1013084,96789.0,96781.0,0.003]
[1734850993825,0.1013084,96789.0,96777.0,0.0001714]
[1734850994033,0.1013084,96789.0,96778.0,0.00105422]
[1734850994236,0.413274,96788.0,96781.0,0.003]
[1734850994457,0.206641,96786.0,96781.0,0.003]
[1734850994798,0.206645,96784.0,96781.0,0.003]
[1734850995607,0.206648,96783.0,96778.0,5.422e-05]
[1734850996073,0.206648,96783.0,96781.0,0.002]
[1734850996474,0.206648,96783.0,96781.0,0.003]
[1734850996621,0.206652,96781.0,96778.0,5.422e-05]
[1734850996822,0.1013084,96780.0,96778.0,0.00205422]
[1734850997168,0.1941721,96780.0,96778.0,0.00305422]
[1734850997395,0.1941721,96780.0,96778.0,5.422e-05]
[1734850997819,0.206656,96779.0,96778.0,5.422e-05]
[1734850998096,0.3574644,96779.0,96778.0,5.422e-05]
[1734850999244,0.3574644,96779.0,96778.0,0.00205422]
[1734850999446,0.3574644,96779.0,96778.0,0.00705422]
[1734850999646,0.3574644,96779.0,96778.0,0.00505422]
[1734851000207,0.1013084,96779.0,96778.0,0.00805422]
[1734851003564,0.1013084,96779.0,96778.0,0.00505422]
[1734851003771,0.1013084,96779.0,96778.0,5.422e-05]
[1734851004212,0.1013084,96779.0,96778.0,0.00205422]
[1734851004630,0.24060395,96779.0,96778.0,0.00205422]
[1734851005408,0.24060395,96779.0,96778.0,0.00105422]
[1734851005879,0.19409005,96779.0,96778.0,0.00105422]
[1734851006160,0.19409005,96779.0,96778.0,5.422e-05]
[1734851006351,0.19809005,96779.0,96778.0,5.422e-05]
[1734851006529,0.19509005,96779.0,96778.0,5.422e-05]
[1734851006902,0.19909005,96779.0,96778.0,5.422e-05]
[1734851007120,0.1013084,96779.0,96778.0,5.422e-05]
[1734851007337,0.1033084,96779.0,96778.0,5.422e-05]
[1734851007723,0.1013084,96779.0,96778.0,5.422e-05]
[1734851008117,0.1023084,96779.0,96778.0,5.422e-05]
[1734851008650,0.1043084,96779.0,96778.0,5.422e-05]
[1734851008868,0.1023084,96779.0,96778.0,5.422e-05]
[1734851009351,0.1043084,96779.0,96778.0,5.422e-05]
[1734851009994,0.1033084,96779.0,96778.0,5.422e-05]
[1734851010392,0.1053084,96779.0,96778.0,5.422e-05]
[1734851010840,0.1033084,96779.0,96778.0,5.422e-05]
[1734851011220,0.1043084,96779.0,96778.0,5.422e-05]
[1734851013287,0.003,96779.0,96778.0,5.422e-05]
[1734851014673,0.002,96779.0,96778.0,5.422e-05]
[1734851015040,0.002,96779.0,96778.0,0.00105422]
[1734851015445,8.57e-05,96783.0,96778.0,0.00105422]
[1734851015683,0.206649,96782.0,96778.0,0.00105422]
[1734851015860,0.206649,96782.0,96778.0,0.00205422]
[1734851016536,0.206649,96782.0,96778.0,0.00105422]
[1734851016693,0.206649,96782.0,96778.0,5.422e-05]
[1734851016898,0.206654,96780.0,96778.0,5.422e-05]
[1734851017220,0.2995084,96779.0,96778.0,5.422e-05]
[1734851017416,0.3773084,96779.0,96778.0,5.422e-05]
[1734851017795,0.2273084,96779.0,96778.0,5.422e-05]
[1734851018309,0.3503084,96779.0,96778.0,5.422e-05]
[1734851019579,0.51054415,96779.0,96778.0,0.00105422]
[1734851019784,0.61054415,96779.0,96778.0,0.00105422]
[1734851019997,0.61054415,96779.0,96778.0,5.422e-05]
[1734851020193,0.61054415,96779.0,96777.0,0.0001714]
[1734851020194,0.579658,96778.0,96777.0,0.0001714]
[1734851020359,0.8076664,96778.0,96777.0,0.00023324]
[1734851022069,0.8106664,96778.0,96777.0,0.00023324]
[1734851022271,1.15294767,96778.0,96777.0,0.00023324]
[1734851022549,1.15894767,96778.0,96777.0,0.00023324]
[1734851022723,1.15894767,96778.0,96737.0,0.0816]
[1734851022724,0.206731,96744.0,96737.0,0.0816]
[1734851022925,0.3080394,96744.0,96741.0,0.95689903]
[1734851023847,0.1013084,96743.0,96741.0,0.95689903]
[1734851024065,0.206735,96742.0,96741.0,0.95689903]
[1734851024261,0.3080434,96742.0,96741.0,0.95689903]
[1734851024734,0.3080434,96742.0,96741.0,0.95989903]
[1734851025082,0.3080434,96742.0,96741.0,0.95689903]
[1734851025483,0.3080434,96742.0,96741.0,0.96089903]
[1734851026149,0.3080434,96742.0,96741.0,0.96689903]
[1734851026579,0.3080434,96742.0,96741.0,0.96089903]
[1734851026904,0.3120434,96742.0,96741.0,0.95689903]
[1734851027074,0.3080434,96742.0,96741.0,0.95689903]
[1734851027281,0.3100434,96742.0,96741.0,0.95689903]
[1734851027704,0.3080434,96742.0,96741.0,0.95689903]
[1734851028247,0.3100434,96742.0,96741.0,0.95689903]
[1734851028620,0.3140434,96742.0,96741.0,0.95689903]
[1734851028777,0.3120434,96742.0,96741.0,0.95689903]
[1734851028996,0.3080434,96742.0,96741.0,0.95689903]
[1734851029364,0.3100434,96742.0,96741.0,0.95689903]
[1734851029752,0.208735,96742.0,96741.0,0.95689903]
[1734851029897,0.002,96742.0,96741.0,0.95689903]
[1734851030108,0.003,96742.0,96741.0,0.95689903]
[1734851032487,0.001,96742.0,96741.0,0.95689903]
[1734851032886,0.1043084,96742.0,96741.0,0.95689903]
[1734851033095,0.1033084,96742.0,96741.0,0.95689903]
[1734851033287,0.1043084,96742.0,96741.0,0.95689903]
[1734851035649,0.1023084,96742.0,96741.0,0.95689903]
[1734851036036,0.1043084,96742.0,96741.0,0.95689903]
[1734851036239,0.1033084,96742.0,96741.0,0.95689903]
[1734851036427,0.1023084,96742.0,96741.0,0.95689903]
[1734851036629,0.1043084,96742.0,96741.0,0.95689903]
[1734851037055,0.1013084,96742.0,96741.0,0.95689903]
[1734851037260,0.1043084,96742.0,96741.0,0.95689903]
[1734851037737,0.1013084,96742.0,96741.0,0.95689903]
[1734851038077,0.1023084,96742.0,96741.0,0.95689903]
[1734851039610,0.1043084,96742.0,96741.0,0.95689903]
[1734851043077,0.2543084,96742.0,96741.0,0.95689903]
[1734851045973,0.2543084,96742.0,96741.0,0.95189903]
[1734851050529,0.2543084,96742.0,96741.0,1.03179903]
[1734851051484,0.2523084,96742.0,96741.0,1.03179903]
[1734851051696,0.2543084,96742.0,96741.0,1.03179903]
[1734851052258,0.2533084,96742.0,96741.0,1.03179903]
[1734851052664,0.2543084,96742.0,96741.0,1.03179903]
[1734851053279,0.003,96742.0,96741.0,1.03179903]
[1734851053456,0.001,96742.0,96741.0,1.03179903]
[1734851053856,0.003,96742.0,96741.0,1.03179903]
[1734851054082,0.001,96742.0,96741.0,1.03179903]
[1734851054484,0.003,96742.0,96741.0,1.03179903]
[1734851057634,0.001,96742.0,96741.0,1.03179903]
[1734851058036,0.003,96742.0,96741.0,1.03179903]
[1734851058476,0.001,96742.0,96741.0,1.03179903]
[1734851058696,0.09262856,96749.0,96741.0,1.03279903]
[1734851058899,0.1013084,96749.0,96741.0,1.03279903]
[1734851059185,0.001,96742.0,96741.0,1.03279903]
[1734851059358,0.206722,96748.0,96741.0,1.03279903]
[1734851059764,0.01045344,96753.0,96741.0,1.03379903]
[1734851059765,0.413452,96746.0,96741.0,1.03379903]
[1734851059968,0.206731,96744.0,96741.0,1.03379903]
[1734851060162,0.1013084,96743.0,96741.0,1.03179903]
[1734851061675,0.19493696,96743.0,96741.0,1.03179903]
[1734851061941,0.19393696,96743.0,96741.0,1.03179903]
[1734851062143,0.206735,96742.0,96741.0,0.95189903]
[1734851063065,0.3080434,96742.0,96741.0,0.95189903]
[1734851063278,0.40067196,96742.0,96741.0,0.95189903]
[1734851063896,0.40167196,96742.0,96741.0,0.95189903]
[1734851064093,0.55067196,96742.0,96741.0,0.95189903]
[1734851064295,0.80107679,96742.0,96741.0,0.95189903]
[1734851064488,0.80407679,96742.0,96741.0,0.95189903]
[1734851064681,0.80107679,96742.0,96741.0,0.95189903]
[1734851065146,0.80207679,96742.0,96741.0,0.95189903]
[1734851066046,1.07996247,96742.0,96741.0,0.95189903]
[1734851066462,1.08096247,96742.0,96741.0,0.95189903]
[1734851066820,1.07896247,96742.0,96741.0,0.95189903]
[1734851067175,1.08296247,96742.0,96741.0,0.95189903]
[1734851067546,0.80107679,96742.0,96741.0,0.95189903]
[1734851067728,0.80407679,96742.0,96741.0,0.95189903]
[1734851067930,0.80507679,96742.0,96741.0,0.95189903]
[1734851068912,0.80516249,96742.0,96741.0,0.95189903]
[1734851069113,0.80416249,96742.0,96741.0,0.95189903]
[1734851069561,0.80516249,96742.0,96741.0,0.95189903]
[1734851069866,0.80216249,96742.0,96741.0,0.95189903]
[1734851070071,0.80116249,96742.0,96741.0,0.95189903]
[1734851070270,0.80416249,96742.0,96741.0,0.95189903]
[1734851070511,0.80516249,96742.0,96741.0,0.95189903]
[1734851070646,0.80816249,96742.0,96741.0,0.95189903]
[1734851072512,0.80716249,96742.0,96741.0,0.95189903]
[1734851072652,0.80816249,96742.0,96741.0,0.95189903]
[1734851073513,0.80216249,96742.0,96741.0,0.95189903]
[1734851073720,0.80516249,96742.0,96741.0,0.95189903]
[1734851077171,0.80516249,96742.0,96741.0,0.43442103]
[1734851078520,0.80216249,96742.0,96741.0,0.43442103]
[1734851078949,0.80416249,96742.0,96741.0,0.43442103]
[1734851079373,0.80516249,96742.0,96741.0,0.43442103]
[1734851079749,0.80416249,96742.0,96741.0,0.43442103]
[1734851079949,0.80516249,96742.0,96741.0,0.43442103]
[1734851080376,0.80216249,96742.0,96741.0,0.43442103]
[1734851080596,0.59542749,96742.0,96741.0,0.51282103]
[1734851080783,0.44542749,96742.0,96741.0,0.51282103]
[1734851081189,0.34711909,96742.0,96741.0,0.51282103]
[1734851081418,0.34411909,96742.0,96741.0,0.51282103]
[1734851081754,0.34711909,96742.0,96741.0,0.51282103]
[1734851081959,0.34611909,96742.0,96741.0,0.51282103]
[1734851082370,0.34711909,96742.0,96741.0,0.51282103]
[1734851082573,0.0040857,96742.0,96741.0,0.51282103]
[1734851082775,0.0030857,96742.0,96741.0,0.51282103]
[1734851083196,8.57e-05,96742.0,96741.0,0.51382103]
[1734851083598,0.0030857,96742.0,96741.0,0.51382103]
[1734851083795,8.57e-05,96742.0,96741.0,0.51382103]
[1734851084628,8.57e-05,96742.0,96741.0,0.51482103]
[1734851093763,8.57e-05,96742.0,96741.0,0.43642103]
[1734851094169,0.1013941,96742.0,96741.0,0.43642103]
[1734851097480,0.1013941,96742.0,96741.0,0.43542103]
[1734851097819,0.1013941,96742.0,96741.0,0.43442103]
[1734851099070,0.1023941,96742.0,96741.0,0.43442103]
[1734851099886,0.1043941,96742.0,96741.0,0.43442103]
[1734851101897,0.1033941,96742.0,96741.0,0.43442103]
[1734851102566,0.1013941,96742.0,96741.0,0.43442103]
[1734851102970,0.1023941,96742.0,96741.0,0.43442103]
[1734851103504,0.1013941,96742.0,96741.0,0.43442103]
[1734851103699,8.57e-05,96742.0,96741.0,0.43442103]
[1734851103905,0.0010857,96742.0,96741.0,0.43442103]
[1734851105017,0.0020857,96742.0,96741.0,0.43442103]
[1734851105639,0.0010857,96742.0,96741.0,0.43442103]
[1734851106057,8.57e-05,96742.0,96741.0,0.43442103]
[1734851106683,0.0010857,96742.0,96741.0,0.43442103]
[1734851106886,8.57e-05,96742.0,96741.0,0.43442103]
[1734851107096,8.57e-05,96742.0,96741.0,0.51462103]
[1734851109591,8.57e-05,96742.0,96741.0,0.51562103]
[1734851109998,8.57e-05,96742.0,96741.0,0.51762103]
[1734851110206,8.57e-05,96742.0,96741.0,0.51562103]
[1734851110667,8.57e-05,96742.0,96741.0,0.52062103]
[1734851110870,8.57e-05,96742.0,96741.0,0.51562103]
[1734851111170,8.57e-05,96742.0,96741.0,0.51762103]
[1734851111378,8.57e-05,96742.0,96741.0,0.51662103]
[1734851111735,8.57e-05,96742.0,96741.0,0.51762103]
[1734851112089,8.57e-05,96742.0,96741.0,0.51662103]
[1734851112632,8.57e-05,96742.0,96741.0,0.51762103]
[1734851112969,8.57e-05,96742.0,96741.0,0.51462103]
[1734851113375,8.57e-05,96742.0,96741.0,0.51662103]
[1734851113594,8.57e-05,96742.0,96741.0,0.51462103]
[1734851114304,8.57e-05,96742.0,96741.0,0.51562103]
[1734851114483,8.57e-05,96742.0,96741.0,0.51862103]
[1734851114684,8.57e-05,96742.0,96741.0,0.51462103]
[1734851115114,8.57e-05,96742.0,96741.0,0.51562103]
[1734851116204,8.57e-05,96742.0,96741.0,0.51662103]
[1734851116545,8.57e-05,96742.0,96741.0,0.51462103]
[1734851116984,8.57e-05,96742.0,96741.0,0.51662103]
[1734851117175,8.57e-05,96742.0,96741.0,0.51462103]
[1734851117379,8.57e-05,96742.0,96741.0,0.51762103]
[1734851117721,8.57e-05,96742.0,96741.0,0.51562103]
[1734851117919,8.57e-05,96742.0,96741.0,0.51662103]
[1734851118116,8.57e-05,96742.0,96741.0,0.51762103]
[1734851119608,8.57e-05,96742.0,96741.0,0.51562103]
[1734851119728,8.57e-05,96742.0,96741.0,0.51862103]
[1734851129667,0.09300613,96751.0,96742.0,7.629e-05]
[1734851131281,0.09400613,96751.0,96742.0,7.629e-05]
[1734851132521,0.09300613,96751.0,96742.0,7.629e-05]
[1734851132991,0.09400613,96751.0,96742.0,7.629e-05]
[1734851133211,0.09300613,96751.0,96742.0,7.629e-05]
[1734851133575,0.09400613,96751.0,96742.0,7.629e-05]
[1734851133774,0.09300613,96751.0,96742.0,7.629e-05]
[1734851134193,0.206718,96750.0,96742.0,7.629e-05]
[1734851134715,0.206718,96750.0,96742.0,0.00107629]
[1734851135269,0.29972413,96750.0,96742.0,0.00107629]
[1734851136116,0.29972413,96750.0,96742.0,0.00207629]
[1734851136452,0.29972413,96750.0,96742.0,0.00107629]
[1734851136651,0.09300613,96749.0,96742.0,0.00207629]
[1734851137058,0.09300613,96749.0,96742.0,0.00107629]
[1734851137867,0.206718,96750.0,96742.0,0.00107629]
[1734851137868,0.09300613,96748.0,96742.0,0.00207629]
[1734851138313,0.09300613,96748.0,96742.0,0.00307629]
[1734851138526,0.09300613,96748.0,96742.0,0.00324769]
[1734851138728,0.09300613,96748.0,96742.0,0.00224769]
[1734851139123,0.09300613,96748.0,96742.0,0.00124769]
[1734851139324,0.09300613,96748.0,96742.0,0.00224769]
[1734851139530,0.09300613,96747.0,96742.0,0.00124769]
[1734851139867,0.09300613,96747.0,96742.0,0.00324769]
[1734851140424,0.09300613,96747.0,96742.0,0.00224769]
[1734851140627,0.09300613,96747.0,96742.0,0.00024769]
[1734851140982,0.09300613,96747.0,96742.0,0.00324769]
[1734851144226,0.09300613,96745.0,96742.0,0.00324769]
[1734851145176,0.09300613,96745.0,96742.0,0.00224769]
[1734851145369,0.09300613,96744.0,96742.0,0.00424769]
[1734851145904,0.206733,96743.0,96742.0,0.00224769]
[1734851146231,0.3080414,96743.0,96742.0,0.00524769]
[1734851146434,0.3080414,96743.0,96742.0,0.00224769]
[1734851147142,0.3080414,96743.0,96742.0,0.00024769]
[1734851147342,0.3080414,96743.0,96742.0,0.00324769]
[1734851147548,0.3080414,96743.0,96742.0,0.00424769]
[1734851147891,0.66195856,96743.0,96742.0,0.00124769]
[1734851148125,0.66195856,96743.0,96742.0,0.00024769]
[1734851148322,0.66195856,96743.0,96742.0,0.00224769]
[1734851148975,0.65141375,96743.0,96742.0,0.00024769]
[1734851149362,0.65141375,96743.0,96742.0,0.00124769]
[1734851149581,0.65141375,96743.0,96742.0,0.00524769]
[1734851149834,0.65141375,96743.0,96742.0,0.00124769]
[1734851150304,0.65141375,96743.0,96742.0,0.00324769]
[1734851151013,0.65149945,96743.0,96742.0,0.00024769]
[1734851151214,0.65149945,96743.0,96742.0,0.00124769]
[1734851151434,0.65149945,96743.0,96742.0,0.00224769]
[1734851152009,0.65149945,96743.0,96742.0,0.00124769]
[1734851152768,0.65149945,96743.0,96742.0,0.00224769]
[1734851152995,0.65149945,96743.0,96742.0,0.00124769]
[1734851153166,0.65149945,96743.0,96742.0,0.00224769]
[1734851153596,0.65149945,96743.0,96742.0,0.00124769]
[1734851153796,0.65149945,96743.0,96742.0,0.00024769]
[1734851153996,0.65149945,96743.0,96742.0,0.00124769]
[1734851154332,0.67449945,96743.0,96742.0,0.00124769]
[1734851154451,0.75379945,96743.0,96742.0,0.00024769]
[1734851154657,0.98627495,96743.0,96742.0,0.00024769]
[1734851155299,0.88497495,96743.0,96742.0,0.00024769]
[1734851155682,0.88397495,96743.0,96742.0,0.00024769]
[1734851155878,0.88497495,96743.0,96742.0,0.00024769]
[1734851156196,0.88397495,96743.0,96742.0,0.00024769]
[1734851156396,0.65149945,96743.0,96742.0,0.00024769]
[1734851156581,0.65249945,96743.0,96742.0,0.00024769]
[1734851166400,0.80249945,96743.0,96742.0,0.00024769]
[1734851166804,0.82549945,96743.0,96742.0,0.00024769]
[1734851167671,0.92549945,96743.0,96742.0,0.00024769]
[1734851170821,0.82549945,96743.0,96742.0,0.00024769]
[1734851171055,0.92549945,96743.0,96742.0,0.00024769]
[1734851174258,0.82549945,96743.0,96742.0,0.00024769]
[1734851174466,0.92549945,96743.0,96742.0,0.00024769]
[1734851174670,0.82533747,96743.0,96742.0,0.00024769]
[1734851175107,0.92533747,96743.0,96742.0,0.00024769]
[1734851175311,0.82533747,96743.0,96742.0,0.00024769]
[1734851176086,0.92533747,96743.0,96742.0,0.00024769]
[1734851176282,0.82533747,96743.0,96742.0,0.00024769]
[1734851177404,0.80233747,96743.0,96742.0,0.00024769]
[1734851178888,0.80133747,96743.0,96742.0,0.00024769]
[1734851179359,0.80233747,96743.0,96742.0,0.00024769]
[1734851181437,0.44576645,96743.0,96742.0,0.00024769]
[1734851181751,0.44476645,96743.0,96742.0,0.00024769]
[1734851181957,0.678061,96743.0,96742.0,0.00024769]
[1734851182503,0.677061,96743.0,96742.0,0.00024769]
[1734851182686,0.678061,96743.0,96742.0,0.00024769]
[1734851182852,0.1023941,96743.0,96742.0,0.00024769]
[1734851185313,0.1013941,96743.0,96742.0,0.00024769]
[1734851185670,0.2417893,96743.0,96742.0,0.00024769]
[1734851186486,0.2407893,96743.0,96742.0,0.00024769]
[1734851186685,0.2417893,96743.0,96742.0,0.00024769]
[1734851187461,0.2437893,96743.0,96742.0,0.00024769]
[1734851188022,0.2417893,96743.0,96742.0,0.00024769]
[1734851188220,0.63143984,96743.0,96742.0,0.00024769]
[1734851188422,0.63043984,96743.0,96742.0,0.00024769]
[1734851188671,0.63043984,96743.0,96742.0,0.00224769]
[1734851189255,0.63143984,96743.0,96742.0,0.00224769]
[1734851189522,0.63143984,96743.0,96742.0,0.00024769]
[1734851189733,0.44557957,96743.0,96742.0,0.00024769]
[1734851189941,0.44557957,96743.0,96742.0,0.00124769]
[1734851190778,0.44457957,96743.0,96742.0,0.00124769]
[1734851191002,0.44557957,96743.0,96742.0,0.00124769]
[1734851191458,0.44457957,96743.0,96742.0,0.00124769]
[1734851191635,0.44457957,96743.0,96742.0,0.00024769]
[1734851191967,0.44557957,96743.0,96742.0,0.00124769]
[1734851192112,0.44557957,96743.0,96742.0,0.00024769]
[1734851192340,0.44457957,96743.0,96742.0,0.00124769]
[1734851192582,0.67787412,96743.0,96742.0,0.00124769]
[1734851192793,0.67787412,96743.0,96742.0,0.00024769]
[1734851193076,0.67787412,96743.0,96742.0,0.00124769]
[1734851193288,0.67787412,96743.0,96742.0,0.00024769]
[1734851194200,0.44457957,96743.0,96742.0,0.00024769]
[1734851194531,0.44557957,96743.0,96742.0,0.00024769]
[1734851194843,0.44557957,96743.0,96742.0,0.00124769]